[Event "SM-blixten 2025"]
[Site "Uppsala, Sweden"]
[Date "2025.07.03"]
[Round "7.4"]
[White "Pantzar, Milton"]
[Black "Crevatin, Leo"]
[Result "1/2-1/2"]
[TimeControl "3 min + 2 sec increment starting from move 1"]
[WhiteTitle "IM"]
[BlackTitle "FM"]
[WhiteElo "2444"]
[BlackElo "2248"]

1. c4 {[%clk 00:03:00]} {[%emt 00:00:04]} e5 {[%clk 00:03:00]} {[%emt
00:00:04]} 2. Nc3 {[%clk 00:02:58]} {[%emt 00:00:04]} Nf6 {[%clk 00:03:00]}
{[%emt 00:00:02]} 3. Nf3 {[%clk 00:02:54]} {[%emt 00:00:06]} e4 {[%clk
00:03:00]} {[%emt 00:00:01]} 4. Ng5 {[%emt 00:00:06]} c6 {[%emt 00:00:01]} 5.
Ngxe4 {[%clk 00:02:46]} {[%emt 00:00:06]} Nxe4 {[%clk 00:03:03]} {[%emt
00:00:01]} 6. Nxe4 {[%clk 00:02:46]} {[%emt 00:00:02]} d5 {[%clk 00:03:04]} 7.
cxd5 {[%clk 00:02:45]} {[%emt 00:00:03]} cxd5 {[%clk 00:03:05]} 8. Ng3 {[%clk
00:02:44]} {[%emt 00:00:03]} h5 {[%clk 00:03:06]} {[%emt 00:00:01]} 9. h4
{[%clk 00:02:33]} {[%emt 00:00:13]} Bd6 {[%clk 00:02:50]} {[%emt 00:00:18]} 10.
e3 {[%clk 00:02:29]} {[%emt 00:00:06]} Bxg3 {[%clk 00:02:33]} {[%emt 00:00:18]}
11. fxg3 {[%clk 00:02:30]} {[%emt 00:00:02]} Bg4 {[%clk 00:02:34]} {[%emt
00:00:01]} 12. Qa4+ {[%clk 00:02:20]} {[%emt 00:00:12]} Nc6 {[%clk 00:02:35]}
{[%emt 00:00:01]} 13. Bb5 {[%clk 00:02:18]} {[%emt 00:00:05]} Rc8 {[%clk
00:02:26]} {[%emt 00:00:10]} 14. O-O {[%clk 00:02:16]} {[%emt 00:00:04]} a6
{[%clk 00:02:18]} {[%emt 00:00:11]} 15. Bxc6+ {[%clk 00:02:16]} {[%emt
00:00:01]} Rxc6 {[%clk 00:02:18]} {[%emt 00:00:02]} 16. Qb4 {[%clk 00:02:06]}
{[%emt 00:00:12]} Qe7 {[%clk 00:02:09]} {[%emt 00:00:11]} 17. Qxe7+ {[%clk
00:01:52]} {[%emt 00:00:17]} Kxe7 {[%clk 00:02:11]} 18. b3 {[%clk 00:01:53]}
{[%emt 00:00:02]} Rhc8 {[%clk 00:01:47]} {[%emt 00:00:25]} 19. Bb2 {[%clk
00:01:44]} {[%emt 00:00:10]} f6 {[%clk 00:01:47]} {[%emt 00:00:02]} 20. Bc3
{[%clk 00:01:45]} {[%emt 00:00:02]} Ke6 {[%clk 00:01:33]} {[%emt 00:00:16]} 21.
Rf4 {[%clk 00:01:45]} {[%emt 00:00:01]} Bf5 {[%clk 00:00:50]} {[%emt 00:00:46]}
22. Raf1 {[%clk 00:01:42]} {[%emt 00:00:05]} Bg4 {[%clk 00:00:39]} {[%emt
00:00:12]} 23. Rd4 {[%clk 00:01:27]} {[%emt 00:00:17]} Rd6 {[%clk 00:00:36]}
{[%emt 00:00:05]} 24. Rff4 {[%clk 00:01:23]} {[%emt 00:00:07]} Rc7 {[%clk
00:00:22]} {[%emt 00:00:16]} 25. Rf1 {[%clk 00:01:11]} {[%emt 00:00:13]} Rcd7
{[%clk 00:00:24]} {[%emt 00:00:01]} 26. Ra1 {[%clk 00:01:07]} {[%emt 00:00:06]}
Rc6 {[%clk 00:00:25]} 27. Kf2 {[%clk 00:01:07]} {[%emt 00:00:02]} Rdc7 {[%clk
00:00:26]} {[%emt 00:00:01]} 28. a4 {[%clk 00:01:04]} {[%emt 00:00:05]} Bf5
{[%clk 00:00:25]} {[%emt 00:00:03]} 29. Rb4 {[%clk 00:00:43]} {[%emt 00:00:24]}
Rd7 {[%clk 00:00:24]} {[%emt 00:00:03]} 30. Rf4 {[%clk 00:00:33]} {[%emt
00:00:11]} Rdc7 {[%clk 00:00:24]} {[%emt 00:00:02]} 31. Ke1 {[%clk 00:00:31]}
{[%emt 00:00:03]} Rd7 {[%clk 00:00:25]} {[%emt 00:00:02]} 32. Kd1 {[%clk
00:00:31]} {[%emt 00:00:02]} Bg4+ {[%clk 00:00:23]} {[%emt 00:00:04]} 33. Kc2
{[%clk 00:00:32]} {[%emt 00:00:01]} Bf5+ {[%clk 00:00:24]} {[%emt 00:00:02]} 34.
Kb2 {[%clk 00:00:33]} Bg4 {[%clk 00:00:22]} {[%emt 00:00:05]} 35. Raf1 {[%clk
00:00:32]} {[%emt 00:00:03]} Rc8 {[%clk 00:00:21]} {[%emt 00:00:02]} 36. Re1
{[%clk 00:00:31]} {[%emt 00:00:03]} Rc6 {[%clk 00:00:21]} {[%emt 00:00:02]} 37.
e4 {[%clk 00:00:31]} {[%emt 00:00:03]} d4 {[%clk 00:00:22]} 38. Bb4 {[%clk
00:00:30]} {[%emt 00:00:03]} Rdc7 {[%clk 00:00:24]} {[%emt 00:00:01]} 39. a5
{[%clk 00:00:26]} {[%emt 00:00:06]} Rc2+ {[%clk 00:00:24]} {[%emt 00:00:01]} 40.
Ka3 {[%clk 00:00:27]} {[%emt 00:00:02]} Rd7 {[%clk 00:00:18]} {[%emt 00:00:07]}
41. e5 {[%clk 00:00:18]} {[%emt 00:00:12]} fxe5 {[%clk 00:00:18]} {[%emt
00:00:02]} 42. Rf8 {[%clk 00:00:19]} {[%emt 00:00:01]} Kd5 {[%clk 00:00:11]}
{[%emt 00:00:08]} 43. Re8 {[%clk 00:00:19]} {[%emt 00:00:02]} Be6 {[%clk
00:00:12]} 44. Rh8 {[%clk 00:00:18]} {[%emt 00:00:03]} g6 {[%clk 00:00:13]}
{[%emt 00:00:01]} 45. Re8 {[%clk 00:00:14]} {[%emt 00:00:06]} Rc6 {[%clk
00:00:13]} {[%emt 00:00:01]} 46. Rf1 {[%clk 00:00:14]} {[%emt 00:00:02]} Rf7
{[%clk 00:00:14]} {[%emt 00:00:02]} 47. Rd8+ {[%clk 00:00:15]} {[%emt
00:00:01]} Rd7 {[%clk 00:00:14]} {[%emt 00:00:02]} 48. Rb8 {[%clk 00:00:13]}
{[%emt 00:00:03]} Ke4 {[%clk 00:00:14]} {[%emt 00:00:02]} 49. Re1+ {[%clk
00:00:14]} {[%emt 00:00:01]} Kd5 {[%clk 00:00:15]} {[%emt 00:00:02]} 50. Re8
{[%clk 00:00:13]} {[%emt 00:00:03]} e4 {[%clk 00:00:15]} {[%emt 00:00:01]} 51.
Rf8 {[%clk 00:00:12]} {[%emt 00:00:04]} Bf5 {[%clk 00:00:16]} {[%emt 00:00:01]}
52. Re8 {[%clk 00:00:09]} {[%emt 00:00:04]} Re6 {[%clk 00:00:17]} 53. Rc8
{[%clk 00:00:10]} {[%emt 00:00:02]} Rc6 {[%clk 00:00:18]} 54. Re8 {[%clk
00:00:11]} {[%emt 00:00:01]} Re6 {[%clk 00:00:13]} {[%emt 00:00:08]} 55. Rf8
{[%clk 00:00:12]} {[%emt 00:00:01]} Rc6 {[%clk 00:00:12]} {[%emt 00:00:03]} 56.
Rh8 {[%clk 00:00:12]} {[%emt 00:00:02]} Re6 {[%clk 00:00:11]} {[%emt 00:00:03]}
57. Rb8 {[%clk 00:00:08]} {[%emt 00:00:05]} Rc6 {[%clk 00:00:12]} {[%emt
00:00:01]} 58. Re8 {[%clk 00:00:08]} {[%emt 00:00:03]} Re6 {[%clk 00:00:11]}
{[%emt 00:00:03]} 59. Rc8 {[%clk 00:00:07]} {[%emt 00:00:03]} Rc6 {[%clk
00:00:11]} {[%emt 00:00:02]} 1/2-1/2

[Event "SM-blixten 2025"]
[Site "Uppsala, Sweden"]
[Date "2025.07.03"]
[Round "8.10"]
[White "Agrest, Simon"]
[Black "Karlsson, Tomas"]
[Result "1-0"]
[TimeControl "3 min + 2 sec increment starting from move 1"]
[BlackTitle "FM"]
[WhiteElo "2006"]
[BlackElo "2239"]

1. e4 {[%clk 00:03:03]} e6 {[%clk 00:03:03]} {[%emt 00:00:02]} 2. d4 {[%clk
00:03:04]} {[%emt 00:00:01]} d5 {[%clk 00:03:05]} 3. e5 {[%clk 00:03:05]}
{[%emt 00:00:01]} c5 {[%clk 00:03:06]} 4. c3 {[%clk 00:03:06]} {[%emt
00:00:01]} Nc6 {[%clk 00:03:07]} 5. Nf3 {[%emt 00:00:01]} Bd7 {[%emt 00:00:02]}
6. Bd3 {[%clk 00:02:59]} {[%emt 00:00:06]} f6 {[%clk 00:03:03]} {[%emt
00:00:06]} 7. O-O {[%clk 00:02:42]} {[%emt 00:00:19]} fxe5 {[%clk 00:03:02]}
{[%emt 00:00:04]} 8. Nxe5 {[%clk 00:02:42]} {[%emt 00:00:02]} Nxe5 {[%clk
00:03:02]} {[%emt 00:00:02]} 9. dxe5 {[%clk 00:02:42]} {[%emt 00:00:02]} g6
{[%clk 00:02:57]} {[%emt 00:00:06]} 10. Be3 {[%clk 00:02:15]} {[%emt 00:00:29]}
Qc7 {[%clk 00:02:48]} {[%emt 00:00:11]} 11. f4 {[%clk 00:02:14]} {[%emt
00:00:03]} c4 {[%clk 00:02:47]} {[%emt 00:00:03]} 12. Bc2 {[%clk 00:02:12]}
{[%emt 00:00:04]} Ne7 {[%clk 00:02:45]} {[%emt 00:00:05]} 13. Nd2 {[%clk
00:02:11]} {[%emt 00:00:03]} Bg7 {[%clk 00:02:30]} {[%emt 00:00:17]} 14. Nf3
{[%clk 00:02:05]} {[%emt 00:00:08]} O-O-O {[%clk 00:02:15]} {[%emt 00:00:16]}
15. b3 {[%clk 00:01:44]} {[%emt 00:00:23]} Nf5 {[%clk 00:02:05]} {[%emt
00:00:12]} 16. Bf2 {[%clk 00:01:36]} {[%emt 00:00:10]} Bf8 {[%clk 00:01:59]}
{[%emt 00:00:08]} 17. Rb1 {[%clk 00:01:28]} {[%emt 00:00:10]} Bc5 {[%clk
00:01:56]} {[%emt 00:00:05]} 18. b4 {[%clk 00:01:05]} {[%emt 00:00:25]} Bb6
{[%clk 00:01:29]} {[%emt 00:00:30]} 19. Qd2 {[%clk 00:00:53]} {[%emt 00:00:13]}
h6 {[%clk 00:01:28]} {[%emt 00:00:03]} 20. a4 {[%clk 00:00:52]} {[%emt
00:00:03]} a6 {[%clk 00:01:23]} {[%emt 00:00:08]} 21. a5 {[%clk 00:00:41]}
{[%emt 00:00:13]} Bxf2+ {[%clk 00:01:21]} {[%emt 00:00:03]} 22. Rxf2 {[%clk
00:00:37]} {[%emt 00:00:06]} Rdf8 {[%clk 00:01:18]} {[%emt 00:00:05]} 23. Bxf5
{[%clk 00:00:36]} {[%emt 00:00:03]} Rxf5 {[%clk 00:01:10]} {[%emt 00:00:11]} 24.
Nd4 {[%clk 00:00:36]} {[%emt 00:00:01]} Rf7 {[%clk 00:01:10]} {[%emt 00:00:02]}
25. b5 {[%clk 00:00:32]} {[%emt 00:00:07]} Qxa5 {[%clk 00:01:05]} {[%emt
00:00:07]} 26. bxa6 {[%clk 00:00:32]} {[%emt 00:00:01]} Qxa6 {[%clk 00:00:59]}
{[%emt 00:00:08]} 27. Qb2 {[%clk 00:00:17]} {[%emt 00:00:17]} Kc7 {[%clk
00:00:56]} {[%emt 00:00:06]} 28. Qb4 {[%clk 00:00:08]} {[%emt 00:00:11]} Rc8
{[%clk 00:00:34]} {[%emt 00:00:24]} 29. Rfb2 {[%clk 00:00:08]} {[%emt
00:00:02]} Kd8 {[%clk 00:00:26]} {[%emt 00:00:09]} 30. g3 {[%clk 00:00:08]}
{[%emt 00:00:03]} g5 {[%clk 00:00:27]} {[%emt 00:00:01]} 31. f5 {[%clk
00:00:04]} {[%emt 00:00:06]} exf5 {[%clk 00:00:25]} {[%emt 00:00:04]} 32. Qxb7
{[%clk 00:00:04]} {[%emt 00:00:02]} Qxb7 {[%clk 00:00:23]} {[%emt 00:00:03]} 33.
Rxb7 {[%clk 00:00:05]} {[%emt 00:00:01]} Re7 {[%clk 00:00:23]} {[%emt
00:00:03]} 34. R1b6 {[%clk 00:00:04]} {[%emt 00:00:02]} Rxe5 {[%clk 00:00:22]}
{[%emt 00:00:03]} 35. Rd6 {[%clk 00:00:05]} {[%emt 00:00:01]} Re7 {[%clk
00:00:20]} {[%emt 00:00:05]} 36. Rxd5 {[%clk 00:00:04]} {[%emt 00:00:04]} Ke8
{[%clk 00:00:19]} {[%emt 00:00:02]} 37. Rd6 {[%clk 00:00:04]} {[%emt 00:00:02]}
f4 {[%clk 00:00:18]} {[%emt 00:00:03]} 38. gxf4 {[%clk 00:00:05]} {[%emt
00:00:02]} gxf4 {[%clk 00:00:19]} 39. Rxh6 {[%clk 00:00:06]} Rg7+ {[%clk
00:00:20]} 40. Kf2 {[%clk 00:00:06]} {[%emt 00:00:02]} Ra8 {[%clk 00:00:15]}
{[%emt 00:00:06]} 41. Rh8+ {[%clk 00:00:07]} {[%emt 00:00:01]} Ke7 {[%clk
00:00:16]} {[%emt 00:00:01]} 42. Rxa8 {[%clk 00:00:08]} {[%emt 00:00:02]} 1-0

[Event "SM-blixten 2025"]
[Site "Uppsala, Sweden"]
[Date "2025.07.03"]
[Round "10.6"]
[White "Religa, Marek"]
[Black "Nygren, Kim"]
[Result "1-0"]
[TimeControl "3 min + 2 sec increment starting from move 1"]
[BlackTitle "CM"]
[WhiteElo "2227"]
[BlackElo "2173"]

1. e4 {[%clk 00:03:04]} {[%emt 00:07:24]} c5 {[%clk 00:03:01]} {[%emt
00:00:03]} 2. d4 {[%clk 00:03:05]} cxd4 {[%clk 00:03:00]} {[%emt 00:00:04]} 3.
Qxd4 {[%clk 00:03:06]} {[%emt 00:00:01]} Nc6 {[%clk 00:02:59]} {[%emt
00:00:03]} 4. Qd3 {[%clk 00:03:07]} g6 {[%clk 00:02:59]} {[%emt 00:00:02]} 5.
Nc3 {[%clk 00:03:09]} Bg7 {[%clk 00:03:00]} 6. Nf3 {[%clk 00:03:10]} Nh6 {[%clk
00:02:58]} {[%emt 00:00:03]} 7. Be2 {[%clk 00:03:11]} {[%emt 00:00:02]} O-O
{[%clk 00:02:58]} {[%emt 00:00:02]} 8. O-O {[%clk 00:03:11]} d6 {[%clk
00:02:59]} {[%emt 00:00:02]} 9. h3 {[%clk 00:03:11]} {[%emt 00:00:01]} f5
{[%clk 00:02:58]} {[%emt 00:00:03]} 10. Bg5 {[%clk 00:02:48]} {[%emt 00:00:25]}
Nf7 {[%clk 00:02:51]} {[%emt 00:00:09]} 11. Rad1 {[%clk 00:02:25]} {[%emt
00:00:25]} h6 {[%clk 00:02:45]} {[%emt 00:00:07]} 12. Be3 {[%clk 00:02:24]}
{[%emt 00:00:03]} Nfe5 {[%clk 00:02:37]} {[%emt 00:00:10]} 13. Nxe5 {[%clk
00:02:23]} {[%emt 00:00:03]} Nxe5 {[%clk 00:02:38]} {[%emt 00:00:01]} 14. Qd5+
{[%clk 00:02:20]} {[%emt 00:00:05]} Kh7 {[%clk 00:02:38]} {[%emt 00:00:02]} 15.
f4 {[%clk 00:02:12]} {[%emt 00:00:10]} Nc6 {[%clk 00:02:17]} {[%emt 00:00:23]}
16. Bf3 {[%clk 00:02:01]} {[%emt 00:00:14]} Qe8 {[%clk 00:01:34]} {[%emt
00:00:45]} 17. Nb5 {[%clk 00:01:50]} {[%emt 00:00:12]} Rb8 {[%clk 00:01:11]}
{[%emt 00:00:26]} 18. Nxa7 {[%clk 00:01:34]} {[%emt 00:00:18]} Nxa7 {[%clk
00:01:12]} 19. Bxa7 {[%clk 00:01:35]} {[%emt 00:00:01]} Ra8 {[%clk 00:01:11]}
{[%emt 00:00:03]} 20. Bd4 {[%clk 00:01:18]} {[%emt 00:00:18]} e5 {[%clk
00:01:08]} {[%emt 00:00:05]} 21. fxe5 {[%clk 00:01:14]} {[%emt 00:00:07]} dxe5
{[%clk 00:01:09]} {[%emt 00:00:01]} 22. Bc3 {[%clk 00:00:58]} {[%emt 00:00:17]}
Be6 {[%emt 00:00:24]} 23. Qxb7 {[%clk 00:00:50]} {[%emt 00:00:03]} Rxa2 {[%clk
00:00:47]} {[%emt 00:00:09]} 24. exf5 {[%clk 00:00:38]} {[%emt 00:00:14]} gxf5
{[%clk 00:00:36]} {[%emt 00:00:14]} 25. Bd5 {[%clk 00:00:35]} {[%emt 00:00:05]}
Bxd5 {[%clk 00:00:21]} {[%emt 00:00:16]} 26. Qxd5 {[%clk 00:00:35]} Ra7 {[%clk
00:00:17]} {[%emt 00:00:07]} 27. Rde1 {[%clk 00:00:31]} {[%emt 00:00:07]} Re7
{[%clk 00:00:14]} {[%emt 00:00:05]} 28. Bb4 {[%clk 00:00:28]} {[%emt 00:00:04]}
Rd7 {[%clk 00:00:16]} 29. Qb3 {[%clk 00:00:22]} {[%emt 00:00:08]} Rff7 {[%clk
00:00:16]} {[%emt 00:00:02]} 30. Bc3 {[%clk 00:00:18]} {[%emt 00:00:06]} f4
{[%clk 00:00:12]} {[%emt 00:00:06]} 31. Qc4 {[%clk 00:00:17]} {[%emt 00:00:02]}
Rf5 {[%clk 00:00:11]} {[%emt 00:00:04]} 32. Qe4 {[%clk 00:00:17]} {[%emt
00:00:01]} Qg6 {[%clk 00:00:12]} {[%emt 00:00:02]} 33. Rd1 {[%clk 00:00:14]}
{[%emt 00:00:04]} Rdf7 {[%clk 00:00:13]} {[%emt 00:00:01]} 34. Rd8 {[%clk
00:00:12]} {[%emt 00:00:04]} h5 {[%clk 00:00:12]} {[%emt 00:00:02]} 35. Rc8
{[%clk 00:00:09]} {[%emt 00:00:05]} h4 {[%clk 00:00:14]} {[%emt 00:00:02]} 36.
Rc6 {[%clk 00:00:09]} {[%emt 00:00:01]} Qg5 {[%clk 00:00:13]} {[%emt 00:00:02]}
37. Qf3 {[%clk 00:00:09]} {[%emt 00:00:02]} e4 {[%clk 00:00:14]} {[%emt
00:00:02]} 38. Qxe4 {[%clk 00:00:09]} {[%emt 00:00:02]} f3 {[%clk 00:00:15]}
{[%emt 00:00:01]} 39. Qg4 {[%emt 00:00:06]} f2+ {[%clk 00:00:14]} {[%emt
00:00:03]} 40. Kh1 {[%clk 00:00:06]} {[%emt 00:00:01]} Qxg4 {[%clk 00:00:13]}
{[%emt 00:00:03]} 41. hxg4 {[%clk 00:00:07]} {[%emt 00:00:01]} Rf4 {[%clk
00:00:14]} 42. Bxg7 {[%clk 00:00:08]} {[%emt 00:00:02]} Kxg7 {[%emt 00:00:01]}
43. Rc5 {[%clk 00:00:09]} Rxg4 {[%clk 00:00:15]} {[%emt 00:00:02]} 44. Rc3
{[%clk 00:00:09]} Rg3 {[%clk 00:00:14]} {[%emt 00:00:04]} 45. Kh2 {[%clk
00:00:07]} {[%emt 00:00:04]} Rxc3 {[%clk 00:00:09]} {[%emt 00:00:07]} 46. bxc3
{[%clk 00:00:08]} Kg6 {[%clk 00:00:06]} {[%emt 00:00:05]} 47. g3 {[%clk
00:00:07]} {[%emt 00:00:02]} Kg5 {[%clk 00:00:07]} {[%emt 00:00:01]} 48. gxh4+
{[%clk 00:00:08]} {[%emt 00:00:02]} Kxh4 {[%clk 00:00:06]} {[%emt 00:00:03]} 49.
Kg2 {[%clk 00:00:09]} Rc7 {[%clk 00:00:05]} {[%emt 00:00:03]} 50. Rxf2 {[%clk
00:00:10]} {[%emt 00:00:01]} Rxc3 {[%clk 00:00:07]} 51. Rd2 {[%clk 00:00:07]}
{[%emt 00:00:05]} Kg4 {[%clk 00:00:07]} {[%emt 00:00:02]} 52. Kf2 {[%clk
00:00:08]} {[%emt 00:00:01]} Kf4 {[%clk 00:00:08]} {[%emt 00:00:01]} 53. Ke2
{[%clk 00:00:10]} {[%emt 00:00:01]} Ke4 {[%clk 00:00:10]} 54. Kd1 {[%clk
00:00:11]} {[%emt 00:00:01]} Ra3 {[%clk 00:00:10]} {[%emt 00:00:02]} 55. Rh2
{[%clk 00:00:11]} {[%emt 00:00:01]} Ra2 {[%clk 00:00:10]} {[%emt 00:00:03]} 56.
Kd2 {[%clk 00:00:11]} {[%emt 00:00:01]} Rb2 {[%clk 00:00:11]} 57. Rh4+ {[%clk
00:00:12]} Kd5 {[%clk 00:00:12]} 58. Kc3 {[%clk 00:00:14]} Rb1 {[%clk
00:00:13]} {[%emt 00:00:01]} 59. Rh5+ {[%clk 00:00:15]} Kc6 {[%clk 00:00:15]}
60. Kc4 {[%clk 00:00:16]} Rg1 {[%clk 00:00:16]} {[%emt 00:00:02]} 61. Rh6+
{[%clk 00:00:16]} {[%emt 00:00:02]} Kc7 {[%clk 00:00:17]} {[%emt 00:00:01]} 62.
c3 {[%clk 00:00:17]} {[%emt 00:00:01]} Rg5 {[%clk 00:00:18]} 63. Kb4 {[%clk
00:00:18]} Rg1 {[%clk 00:00:18]} {[%emt 00:00:01]} 64. c4 {[%clk 00:00:19]}
{[%emt 00:00:01]} Rd1 {[%clk 00:00:19]} {[%emt 00:00:02]} 65. Kc5 {[%clk
00:00:20]} {[%emt 00:00:01]} Rc1 {[%clk 00:00:19]} 66. Rh7+ {[%clk 00:00:21]}
{[%emt 00:00:01]} Kc8 {[%clk 00:00:21]} 67. Kb5 {[%clk 00:00:22]} Rb1+ {[%clk
00:00:22]} {[%emt 00:00:02]} 68. Kc6 {[%clk 00:00:23]} Kd8 {[%clk 00:00:23]}
{[%emt 00:00:01]} 69. Rh8+ {[%clk 00:00:22]} {[%emt 00:00:02]} Ke7 {[%clk
00:00:24]} {[%emt 00:00:01]} 70. c5 {[%clk 00:00:23]} Rc1 {[%clk 00:00:22]}
{[%emt 00:00:05]} 71. Kb6 {[%clk 00:00:24]} {[%emt 00:00:01]} Rb1+ {[%clk
00:00:23]} 72. Kc7 {[%clk 00:00:26]} Ke6 {[%clk 00:00:24]} 73. c6 {[%clk
00:00:25]} {[%emt 00:00:02]} Rg1 {[%clk 00:00:15]} {[%emt 00:00:11]} 74. Rh6+
{[%clk 00:00:20]} {[%emt 00:00:08]} Kd5 {[%clk 00:00:16]} 75. Rh5+ {[%clk
00:00:18]} {[%emt 00:00:03]} Ke6 {[%clk 00:00:17]} 76. Rh7 {[%clk 00:00:15]}
{[%emt 00:00:05]} Kd5 {[%clk 00:00:17]} {[%emt 00:00:02]} 77. Kd7 {[%clk
00:00:14]} {[%emt 00:00:05]} Ra1 {[%clk 00:00:03]} {[%emt 00:00:14]} 78. Rh5+
{[%clk 00:00:15]} {[%emt 00:00:02]} Ke4 {[%clk 00:03:02]} {[%emt 00:00:02]} 79.
c7 1-0

[ePGN "0.1;DGT LiveChess/2.2.7"]

[Event "SM-blixten 2025"]
[Site "Uppsala, Sweden"]
[Date "2025.07.03"]
[Round "1.1"]
[White "Ullberg, Stefan"]
[Black "Galperin, Platon"]
[Result "0-1"]
[TimeControl "3 min + 2 sec increment starting from move 1"]
[BlackTitle "GM"]
[WhiteElo "1830"]
[BlackElo "2506"]

1. d4 {[%clk 00:03:02]} {[%emt 00:00:02]} g6 {[%clk 00:03:03]} {[%emt
00:00:02]} 2. Nf3 {[%clk 00:03:02]} {[%emt 00:00:01]} Bg7 {[%clk 00:03:04]}
{[%emt 00:00:02]} 3. c3 {[%clk 00:03:01]} {[%emt 00:00:03]} Nf6 {[%clk
00:03:02]} {[%emt 00:00:04]} 4. g3 {[%clk 00:02:58]} {[%emt 00:00:05]} b6
{[%clk 00:03:03]} {[%emt 00:00:02]} 5. Bg2 {[%clk 00:02:58]} {[%emt 00:00:01]}
Bb7 {[%clk 00:03:04]} {[%emt 00:00:01]} 6. O-O {[%clk 00:02:56]} {[%emt
00:00:04]} O-O {[%clk 00:03:04]} {[%emt 00:00:02]} 7. Bg5 {[%clk 00:02:47]}
{[%emt 00:00:11]} Ne4 {[%clk 00:03:02]} {[%emt 00:00:04]} 8. Bc1 {[%clk
00:02:43]} {[%emt 00:00:06]} c5 {[%clk 00:03:02]} {[%emt 00:00:02]} 9. e3
{[%clk 00:02:38]} {[%emt 00:00:08]} Qc7 {[%clk 00:03:00]} {[%emt 00:00:04]} 10.
Nfd2 {[%clk 00:02:09]} {[%emt 00:00:30]} Nf6 {[%clk 00:03:00]} {[%emt
00:00:02]} 11. Nf3 {[%clk 00:01:46]} {[%emt 00:00:25]} d6 {[%clk 00:02:59]}
{[%emt 00:00:04]} 12. Nbd2 {[%clk 00:01:40]} {[%emt 00:00:07]} Nbd7 {[%clk
00:02:59]} {[%emt 00:00:02]} 13. Nb3 {[%clk 00:01:29]} {[%emt 00:00:13]} e5
{[%clk 00:02:58]} {[%emt 00:00:03]} 14. Qe2 {[%clk 00:01:02]} {[%emt 00:00:29]}
Rfe8 {[%clk 00:02:56]} {[%emt 00:00:05]} 15. Qc2 {[%clk 00:00:30]} {[%emt
00:00:33]} Be4 {[%clk 00:02:43]} {[%emt 00:00:15]} 16. Qd2 {[%clk 00:00:27]}
{[%emt 00:00:05]} c4 {[%clk 00:02:43]} {[%emt 00:00:02]} 0-1

[Event "SM-blixten 2025"]
[Site "Uppsala, Sweden"]
[Date "2025.07.03"]
[Round "2.7"]
[White "Sandberg, Lucas"]
[Black "Nilsson, Oliver"]
[Result "0-1"]
[TimeControl "3 min + 2 sec increment starting from move 1"]
[WhiteElo "2274"]
[BlackElo "2107"]

1. Nc3 {[%clk 00:03:03]} d5 {[%clk 00:03:01]} {[%emt 00:00:04]} 2. e4 {[%clk
00:03:04]} d4 {[%clk 00:03:01]} {[%emt 00:00:03]} 3. Nce2 {[%clk 00:03:06]}
{[%emt 00:00:01]} e5 {[%clk 00:03:02]} {[%emt 00:00:01]} 4. Ng3 {[%clk
00:03:07]} Be6 {[%clk 00:03:00]} {[%emt 00:00:04]} 5. b3 {[%clk 00:03:07]}
{[%emt 00:00:01]} Nc6 {[%clk 00:02:49]} {[%emt 00:00:14]} 6. Bc4 {[%clk
00:03:08]} {[%emt 00:00:01]} Bxc4 {[%clk 00:02:49]} {[%emt 00:00:01]} 7. bxc4
{[%clk 00:03:09]} d3 {[%clk 00:02:48]} {[%emt 00:00:03]} 8. c3 {[%clk
00:03:02]} {[%emt 00:00:08]} Bc5 {[%clk 00:02:42]} {[%emt 00:00:10]} 9. Nf3
{[%clk 00:02:54]} {[%emt 00:00:09]} Nge7 {[%clk 00:02:42]} {[%emt 00:00:03]} 10.
O-O {[%clk 00:02:54]} {[%emt 00:00:01]} Ng6 {[%clk 00:02:43]} {[%emt 00:00:02]}
11. a4 {[%clk 00:02:51]} {[%emt 00:00:05]} Nf4 {[%clk 00:02:23]} {[%emt
00:00:21]} 12. Ba3 {[%clk 00:02:49]} {[%emt 00:00:05]} Bxa3 {[%clk 00:02:23]}
{[%emt 00:00:02]} 13. Rxa3 {[%clk 00:02:49]} g6 {[%clk 00:02:11]} {[%emt
00:00:14]} 14. Qb1 {[%clk 00:02:46]} {[%emt 00:00:05]} Qd6 {[%clk 00:01:50]}
{[%emt 00:00:24]} 15. Rb3 {[%clk 00:02:41]} {[%emt 00:00:07]} b6 {[%clk
00:01:40]} {[%emt 00:00:13]} 16. Rb5 {[%clk 00:02:41]} h5 {[%clk 00:01:35]}
{[%emt 00:00:07]} 17. Rd1 {[%clk 00:02:05]} {[%emt 00:00:37]} h4 {[%clk
00:01:36]} {[%emt 00:00:02]} 18. Nf1 {[%clk 00:02:06]} {[%emt 00:00:01]} g5
{[%clk 00:01:15]} {[%emt 00:00:23]} 19. Ne3 {[%clk 00:01:48]} {[%emt 00:00:20]}
O-O-O {[%clk 00:00:43]} {[%emt 00:00:34]} 20. c5 {[%clk 00:01:49]} {[%emt
00:00:01]} Qg6 {[%clk 00:00:39]} {[%emt 00:00:06]} 21. cxb6 {[%clk 00:01:49]}
{[%emt 00:00:02]} axb6 {[%clk 00:00:40]} {[%emt 00:00:02]} 22. Nxe5 {[%clk
00:01:37]} {[%emt 00:00:12]} Nxe5 {[%clk 00:00:40]} {[%emt 00:00:03]} 23. Rxe5
{[%clk 00:01:38]} g4 {[%clk 00:00:39]} {[%emt 00:00:03]} 24. Qb5 {[%clk
00:01:32]} {[%emt 00:00:08]} g3 {[%clk 00:00:33]} {[%emt 00:00:08]} 25. a5
{[%clk 00:01:12]} {[%emt 00:00:22]} Ne2+ {[%clk 00:00:34]} {[%emt 00:00:02]} 26.
Kh1 {[%clk 00:01:07]} {[%emt 00:00:06]} gxf2 {[%clk 00:00:34]} {[%emt
00:00:02]} 27. Rg5 {[%clk 00:00:20]} {[%emt 00:00:49]} Ng3+ {[%clk 00:00:28]}
{[%emt 00:00:07]} 28. Rxg3 {[%clk 00:00:20]} {[%emt 00:00:02]} hxg3 {[%clk
00:00:29]} {[%emt 00:00:01]} 29. h3 {[%clk 00:00:20]} {[%emt 00:00:02]} Qxe4
{[%clk 00:00:10]} {[%emt 00:00:21]} 30. Qf5+ {[%clk 00:00:09]} {[%emt
00:00:14]} Qxf5 {[%clk 00:00:11]} {[%emt 00:00:01]} 31. Nxf5 {[%clk 00:00:10]}
Rde8 {[%clk 00:00:11]} {[%emt 00:00:02]} 32. Ne3 {[%clk 00:00:10]} {[%emt
00:00:02]} f5 {[%clk 00:00:12]} {[%emt 00:00:02]} 33. a6 {[%clk 00:00:08]}
{[%emt 00:00:03]} Kb8 {[%clk 00:00:13]} {[%emt 00:00:01]} 34. c4 {[%clk
00:00:08]} {[%emt 00:00:02]} f4 {[%clk 00:00:14]} {[%emt 00:00:01]} 0-1